fUSD/lending_fUSD_20250108
["ID","MTS","AMOUNT","RATE_DAILY","PERIOD"]
[348094501,1736308239074,-1020.94148517,0.00010417,2]
[348094502,1736308239084,-1160.27,0.00010433,2]
[348094503,1736308239093,-168.11,0.00010508,2]
[348094504,1736308239104,-1000.0,0.00010513,2]
[348094505,1736308239117,-1020.94148517,0.00010521,2]
[348094506,1736308239132,-500.0,0.00010544,2]
[348094507,1736308239142,-500.0,0.00010544,2]
[348094508,1736308239152,-500.0,0.00010544,2]
[348094509,1736308239163,-500.0,0.00010545,2]
[348094510,1736308239173,-500.0,0.00010545,2]
[348094511,1736308239183,-500.0,0.00010545,2]
[348094512,1736308239193,-500.0,0.00010545,2]
[348094513,1736308239202,-500.0,0.00010545,2]
[348094514,1736308239211,-500.0,0.00010545,2]
[348094515,1736308239221,-500.0,0.00010545,2]
[348094516,1736308239232,-500.0,0.00010545,2]
[348094517,1736308239242,-500.0,0.00010545,2]
[348094518,1736308239252,-500.0,0.00010545,2]
[348094519,1736308239262,-500.0,0.00010545,2]
[348094520,1736308239274,-500.0,0.00010545,2]
[348094521,1736308239286,-400.0,0.00010545,2]
[348094522,1736308239296,-502.80515653,0.00010545,2]
[348094523,1736308239306,-499.35670743,0.00010545,2]
[348094524,1736308239317,-500.0,0.00010545,2]
[348094525,1736308239327,-500.0,0.00010545,2]
[348094526,1736308239336,-500.0,0.00010545,2]
[348094527,1736308239345,-500.0,0.00010545,2]
[348094528,1736308239357,-500.0,0.00010545,2]
[348094529,1736308239366,-500.0,0.00010545,2]
[348094530,1736308239376,-500.0,0.00010545,2]
[348094531,1736308239386,-500.0,0.00010545,2]
[348094532,1736308239396,-500.0,0.00010545,2]
[348094533,1736308239406,-504.41526323,0.00010545,2]
[348094534,1736308239416,-500.0,0.00010545,2]
[348094535,1736308239426,-500.0,0.00010545,2]
[348094536,1736308239436,-528.98,0.00010545,2]
[348094537,1736308239446,-500.0,0.00010545,2]
[348094538,1736308239456,-503.61167221,0.00010545,2]
[348094539,1736308239466,-500.0,0.00010545,2]
[348094540,1736308239476,-500.0,0.00010545,2]
[348094541,1736308239486,-500.0,0.00010545,2]
[348094542,1736308239495,-500.0,0.00010545,2]
[348094543,1736308239505,-500.0,0.00010545,2]
[348094544,1736308239515,-500.0,0.00010545,2]
[348094545,1736308239524,-500.0,0.00010545,2]
[348094546,1736308239538,-500.0,0.00010545,2]
[348094547,1736308239547,-500.0,0.00010545,2]
[348094548,1736308239557,-500.0,0.00010545,2]
[348094549,1736308239567,-500.0,0.00010545,2]
[348094550,1736308239576,-500.0,0.00010545,2]
[348094551,1736308239586,-500.0,0.00010545,2]
[348094552,1736308239595,-500.0,0.00010545,2]
[348094553,1736308239606,-500.0,0.00010545,2]
[348094554,1736308239615,-500.0,0.00010545,2]
[348094555,1736308239625,-500.0,0.00010545,2]
[348094556,1736308239635,-500.0,0.00010545,2]
[348094557,1736308239645,-500.0,0.00010545,2]
[348094558,1736308239655,-500.0,0.00010545,2]
[348094559,1736308239664,-500.0,0.00010545,2]
[348094560,1736308239674,-500.0,0.00010545,2]
[348094561,1736308239684,-500.0,0.00010545,2]
[348094562,1736308239693,-1830.63,0.00010545,2]
[348094563,1736308239703,-406.99420207,0.00010545,2]
[348094564,1736308239712,-500.0,0.00010545,2]
[348094565,1736308239721,-500.0,0.00010545,2]
[348094566,1736308239731,-500.0,0.00010545,2]
[348094567,1736308239740,-500.0,0.00010545,2]
[348094568,1736308239750,-500.0,0.00010545,2]
[348094569,1736308239760,-500.0,0.00010545,2]
[348094570,1736308239769,-500.0,0.00010545,2]
[348094571,1736308239783,-500.0,0.00010545,2]
[348094572,1736308239792,-500.0,0.00010545,2]
[348094573,1736308239802,-500.0,0.00010545,2]
[348094574,1736308239812,-592.43950533,0.00010545,2]
[348094575,1736308239822,-268.20560242,0.00010545,2]
[348094576,1736308239831,-500.0,0.00010545,2]
[348094577,1736308239841,-500.0,0.00010545,2]
[348094578,1736308239850,-500.0,0.00010545,2]
[348094579,1736308239860,-500.0,0.00010545,2]
[348094580,1736308239869,-500.0,0.00010545,2]
[348094581,1736308239878,-500.0,0.00010545,2]
[348094583,1736308239887,-500.0,0.00010545,2]
[348094585,1736308239897,-500.0,0.00010545,2]
[348094586,1736308239907,-638.71,0.00010545,2]
[348094588,1736308239916,-500.0,0.00010545,2]
[348094590,1736308239926,-500.0,0.00010545,2]
[348094592,1736308239935,-500.0,0.00010545,2]
[348094593,1736308239945,-500.0,0.00010545,2]
[348094594,1736308239954,-500.0,0.00010545,2]
[348094595,1736308239964,-500.0,0.00010545,2]
[348094596,1736308239974,-500.0,0.00010546,2]
[348094597,1736308239983,-515.06,0.00010546,2]
[348094598,1736308239994,-921.56,0.00010546,2]
[348094599,1736308240004,-2062.69,0.00010546,2]
[348094600,1736308240014,-500.0,0.00010546,2]
[348094601,1736308240024,-500.0,0.00010546,2]
[348094602,1736308240036,-836.4,0.00010546,2]
[348094603,1736308240046,-682.38,0.00010546,2]
[348094604,1736308240056,-500.0,0.00010546,2]
[348094605,1736308240065,-1211.61,0.00010546,2]
[348094606,1736308240075,-500.0,0.00010546,2]
[348094607,1736308240085,-500.0,0.00010546,2]
[348094608,1736308240095,-1017.51,0.00010546,2]
[348094609,1736308240105,-534.71,0.00010546,2]
[348094611,1736308240114,-500.0,0.00010546,2]
[348094612,1736308240124,-1211.08,0.00010546,2]
[348094614,1736308240134,-500.0,0.00010546,2]
[348094616,1736308240144,-1064.2,0.00010546,2]
[348094619,1736308240154,-500.0,0.00010546,2]
[348094620,1736308240163,-643.0,0.00010546,2]
[348094622,1736308240173,-500.0,0.00010546,2]
[348094624,1736308240182,-500.0,0.00010546,2]
[348094625,1736308240191,-500.0,0.00010546,2]
[348094626,1736308240201,-500.0,0.00010546,2]
[348094627,1736308240211,-922.31,0.00010546,2]
[348094628,1736308240220,-500.0,0.00010546,2]
[348094629,1736308240230,-505.80395521,0.00010546,2]
[348094630,1736308240239,-500.0,0.00010546,2]
[348094631,1736308240248,-500.0,0.00010546,2]
[348094632,1736308240258,-500.0,0.00010546,2]
[348094633,1736308240269,-500.0,0.00010546,2]
[348094634,1736308240284,-500.0,0.00010546,2]
[348094635,1736308240294,-500.0,0.00010546,2]
[348094636,1736308240304,-500.0,0.00010546,2]
[348094637,1736308240315,-897.47,0.00010546,2]
[348094638,1736308240324,-500.0,0.00010546,2]
[348094639,1736308240334,-256.89,0.00010546,2]
[348094640,1736308240343,-500.0,0.00010546,2]
[348094641,1736308240354,-500.0,0.00010546,2]
[348094642,1736308240363,-500.0,0.00010546,2]
[348094643,1736308240374,-500.0,0.00010546,2]
[348094644,1736308240384,-1014.65,0.00010546,2]
[348094645,1736308240394,-500.0,0.00010546,2]
[348094646,1736308240404,-500.0,0.00010546,2]
[348094647,1736308240416,-500.0,0.00010546,2]
[348094648,1736308240428,-808.64,0.00010546,2]
[348094649,1736308240441,-500.0,0.00010546,2]
[348094650,1736308240451,-500.0,0.00010546,2]
[348094651,1736308240463,-500.0,0.00010546,2]
[348094652,1736308240472,-500.0,0.00010546,2]
[348094653,1736308240481,-500.0,0.00010546,2]
[348094654,1736308240491,-500.0,0.00010546,2]
[348094655,1736308240500,-500.0,0.00010546,2]
[348094656,1736308240510,-511.86,0.00010546,2]
[348094657,1736308240519,-500.0,0.00010546,2]
[348094658,1736308240529,-500.0,0.00010546,2]
[348094659,1736308240538,-500.0,0.00010546,2]
[348094660,1736308240548,-500.0,0.00010546,2]
[348094661,1736308240557,-500.0,0.00010546,2]
[348094662,1736308240566,-500.0,0.00010546,2]
[348094663,1736308240576,-378.783815,0.00010546,2]
[348094664,1736308240633,-500.0,0.00010546,2]
[348094665,1736308240643,-500.0,0.00010546,2]
[348094666,1736308240653,-500.0,0.00010546,2]
[348094667,1736308240663,-500.0,0.00010546,2]
[348094668,1736308240672,-500.0,0.00010546,2]
[348094669,1736308240681,-500.0,0.00010546,2]
[348094670,1736308240691,-500.0,0.00010546,2]
[348094671,1736308240700,-500.0,0.00010546,2]
[348094672,1736308240709,-500.0,0.00010546,2]
[348094673,1736308240719,-500.0,0.00010546,2]
[348094674,1736308240728,-327.613219,0.00010546,2]
[348094675,1736308240738,-500.0,0.00010546,2]
[348094676,1736308240747,-1667.83,0.00010546,2]
[348094677,1736308240756,-500.0,0.00010546,2]
[348094678,1736308240765,-502.60835846,0.00010546,2]
[348094679,1736308240774,-505.5,0.00010546,2]
[348094680,1736308240787,-500.0,0.00010546,2]
[348094681,1736308240796,-500.0,0.00010546,2]
[348094682,1736308240807,-500.0,0.00010546,2]
[348094683,1736308240816,-500.0,0.00010546,2]
[348094684,1736308240825,-384.94981871,0.00010546,2]
[348094685,1736308240834,-909.17,0.00010546,2]
[348094686,1736308240844,-500.0,0.00010546,2]
[348094687,1736308240853,-500.0,0.00010546,2]
[348094688,1736308240863,-500.0,0.00010546,2]
[348094689,1736308240872,-500.0,0.00010546,2]
[348094690,1736308240882,-500.0,0.00010546,2]
[348094691,1736308240892,-500.0,0.00010546,2]
[348094692,1736308240902,-821.81,0.00010546,2]
[348094693,1736308240911,-519.23,0.00010546,2]
[348094694,1736308240920,-500.0,0.00010546,2]
[348094695,1736308240930,-500.0,0.00010546,2]
[348094696,1736308240939,-500.0,0.00010546,2]
[348094697,1736308240950,-500.0,0.00010546,2]
[348094698,1736308240959,-1593.88,0.00010546,2]
[348094699,1736308240969,-500.0,0.00010546,2]
[348094700,1736308240979,-500.0,0.00010546,2]
[348094701,1736308240990,-500.0,0.00010546,2]
[348094702,1736308241001,-500.0,0.00010546,2]
[348094703,1736308241010,-500.0,0.00010546,2]
[348094704,1736308241020,-500.0,0.00010546,2]
[348094705,1736308241029,-565.0,0.00010546,2]
[348094706,1736308241039,-500.0,0.00010546,2]
[348094707,1736308241048,-823.69,0.00010546,2]
[348094708,1736308241058,-547.16,0.00010546,2]
[348094709,1736308241068,-500.0,0.00010546,2]
[348094710,1736308241077,-500.0,0.00010546,2]
[348094711,1736308241087,-1429.17,0.00010546,2]
[348094712,1736308241097,-377.04711755,0.00010546,2]
[348094713,1736308241107,-500.0,0.00010546,2]
[348094714,1736308241116,-500.0,0.00010546,2]
[348094715,1736308241126,-500.0,0.00010546,2]
[348094716,1736308241136,-500.0,0.00010546,2]
[348094717,1736308241145,-1138.04,0.00010546,2]
[348094718,1736308241154,-1004.11,0.00010546,2]
[348094719,1736308241164,-500.0,0.00010546,2]
[348094720,1736308241174,-906.51,0.00010546,2]
[348094721,1736308241183,-611.61,0.00010546,2]
[348094722,1736308241192,-1069.61,0.00010546,2]
[348094723,1736308241202,-500.0,0.00010546,2]
[348094724,1736308241211,-500.0,0.00010546,2]
[348094725,1736308241220,-500.0,0.00010546,2]
[348094726,1736308241231,-656.2,0.00010546,2]
[348094727,1736308241241,-964.98,0.00010546,2]
[348094728,1736308241251,-632.7,0.00010546,2]
[348094729,1736308241261,-500.0,0.00010546,2]
[348094730,1736308241272,-615.82,0.00010546,2]
[348094731,1736308241285,-500.0,0.00010546,2]
[348094732,1736308241295,-500.0,0.00010546,2]
[348094733,1736308241307,-500.0,0.00010546,2]
[348094734,1736308241316,-567.38,0.00010546,2]
[348094735,1736308241326,-500.0,0.00010546,2]
[348094736,1736308241335,-500.0,0.00010546,2]
[348094737,1736308241345,-500.0,0.00010546,2]
[348094738,1736308241354,-500.0,0.00010546,2]
[348094739,1736308241363,-500.0,0.00010546,2]
[348094740,1736308241373,-527.65,0.00010546,2]
[348094741,1736308241382,-500.0,0.00010546,2]
[348094742,1736308241392,-500.0,0.00010546,2]
[348094743,1736308241401,-1021.26,0.00010546,2]
[348094744,1736308241411,-548.65,0.00010546,2]
[348094745,1736308241420,-500.0,0.00010546,2]
[348094746,1736308241430,-500.0,0.00010546,2]
[348094747,1736308241440,-500.0,0.00010546,2]
[348094748,1736308241449,-1000.55,0.00010546,2]
[348094749,1736308241459,-500.0,0.00010546,2]
[348094750,1736308241469,-500.0,0.00010546,2]
[348094751,1736308241478,-903.56,0.00010546,2]
[348094752,1736308241488,-535.69,0.00010546,2]
[348094753,1736308241497,-500.0,0.00010546,2]
[348094754,1736308241507,-500.0,0.00010546,2]
[348094755,1736308241516,-500.0,0.00010546,2]
[348094756,1736308241526,-564.67,0.00010546,2]
[348094757,1736308241537,-169.11083882,0.00010546,2]
[348094758,1736308241546,-2620.77,0.00010546,2]
[348094759,1736308241556,-500.0,0.00010547,2]
[348094760,1736308241566,-500.0,0.00010547,2]
[348094761,1736308241575,-500.0,0.00010547,2]
[348094762,1736308241585,-500.0,0.00010547,2]
[348094763,1736308241594,-1464.59,0.00010547,2]
[348094764,1736308241604,-500.0,0.00010547,2]
[348094765,1736308241614,-462.90951389,0.00010547,2]
[348094766,1736308241623,-500.0,0.00010547,2]
[348094767,1736308241632,-619.26473656,0.00010547,2]
[348094768,1736308241642,-500.0,0.00010547,2]
[348094769,1736308241651,-500.0,0.00010547,2]
[348094770,1736308241660,-500.0,0.00010547,2]
[348094771,1736308241669,-500.0,0.00010547,2]
[348094772,1736308241679,-500.0,0.00010547,2]
[348094773,1736308241689,-500.0,0.00010547,2]
[348094774,1736308241698,-500.0,0.00010547,2]
[348094775,1736308241708,-500.0,0.00010547,2]
[348094776,1736308241718,-441.39428046,0.00010547,2]
[348094777,1736308241727,-500.0,0.00010547,2]
[348094778,1736308241737,-500.0,0.00010547,2]
[348094779,1736308241747,-500.0,0.00010547,2]
[348094780,1736308241756,-500.0,0.00010547,2]
[348094781,1736308241765,-500.0,0.00010547,2]
[348094782,1736308241774,-500.0,0.00010547,2]
[348094783,1736308241785,-384.97,0.00010547,2]
[348094784,1736308241795,-500.0,0.00010547,2]
[348094785,1736308241804,-500.0,0.00010547,2]
[348094786,1736308241814,-500.0,0.00010547,2]
[348094787,1736308241823,-500.0,0.00010547,2]
[348094788,1736308241833,-500.0,0.00010547,2]
[348094789,1736308241842,-634.98619373,0.00010547,2]
[348094790,1736308241851,-500.0,0.00010547,2]
[348094791,1736308241861,-500.0,0.00010547,2]
[348094792,1736308241870,-500.0,0.00010547,2]
[348094793,1736308241880,-500.0,0.00010547,2]
[348094794,1736308241889,-500.0,0.00010547,2]
[348094795,1736308241898,-500.0,0.00010547,2]
[348094796,1736308241907,-500.0,0.00010547,2]
[348094797,1736308241916,-500.0,0.00010547,2]
[348094798,1736308241926,-500.0,0.00010547,2]
[348094799,1736308241935,-533.23,0.00010547,2]
[348094800,1736308241944,-500.0,0.00010547,2]
[348094801,1736308241953,-225.13608155,0.00010547,2]
[348094802,1736308241962,-500.0,0.00010547,2]
[348094803,1736308241972,-500.0,0.00010547,2]
[348094804,1736308241981,-500.0,0.00010547,2]
[348094805,1736308241992,-500.0,0.00010547,2]
[348094806,1736308242002,-430.58,0.00010595,2]
[348094807,1736308242012,-1020.94148517,0.00010624,2]
[348094808,1736308242022,-1020.94148517,0.00010728,2]
[348094809,1736308242032,-500.0,0.00010818,2]
[348094811,1736308242042,-259.7393311,0.00010818,2]
[348094812,1736308242051,-500.0,0.00010818,2]
[348094813,1736308242061,-500.0,0.00010819,2]
[348094814,1736308242071,-500.0,0.00010819,2]
[348094815,1736308242080,-500.0,0.00010819,2]
[348094816,1736308242090,-500.0,0.00010819,2]
[348094817,1736308242099,-500.0,0.00010819,2]
[348094818,1736308242108,-500.0,0.00010819,2]
[348094819,1736308242118,-500.0,0.00010819,2]
[348094820,1736308242127,-514.07232447,0.00010819,2]
[348094821,1736308242136,-500.0,0.00010819,2]
[348094822,1736308242146,-500.0,0.00010819,2]
[348094823,1736308242155,-500.0,0.00010819,2]
[348094824,1736308242165,-326.51397642,0.00010819,2]
[348094825,1736308242174,-500.0,0.00010819,2]
[348094826,1736308242184,-500.0,0.00010819,2]
[348094827,1736308242193,-500.0,0.00010819,2]
[348094828,1736308242203,-500.0,0.00010819,2]
[348094829,1736308242213,-500.0,0.00010819,2]
[348094830,1736308242223,-500.0,0.00010819,2]
[348094831,1736308242232,-500.0,0.00010819,2]
[348094832,1736308242242,-500.0,0.00010819,2]
[348094833,1736308242251,-500.0,0.00010819,2]
[348094834,1736308242261,-500.0,0.00010819,2]
[348094835,1736308242275,-500.0,0.00010819,2]
[348094836,1736308242285,-500.0,0.00010819,2]
[348094837,1736308242294,-500.0,0.00010819,2]
[348094838,1736308242304,-500.0,0.00010819,2]
[348094839,1736308242314,-500.0,0.00010819,2]
[348094840,1736308242323,-500.0,0.00010819,2]
[348094841,1736308242333,-500.0,0.00010819,2]
[348094842,1736308242342,-500.0,0.00010819,2]
[348094843,1736308242353,-500.0,0.00010819,2]
[348094844,1736308242363,-500.0,0.00010819,2]
[348094845,1736308242372,-500.0,0.00010819,2]
[348094846,1736308242381,-500.0,0.00010819,2]
[348094847,1736308242391,-500.0,0.00010819,2]
[348094848,1736308242400,-500.0,0.00010819,2]
[348094849,1736308242409,-500.0,0.00010819,2]
[348094850,1736308242418,-500.0,0.00010819,2]
[348094851,1736308242428,-500.0,0.00010819,2]
[348094852,1736308242438,-500.0,0.00010819,2]
[348094853,1736308242448,-500.0,0.00010819,2]
[348094854,1736308242459,-500.0,0.00010819,2]
[348094855,1736308242469,-500.0,0.00010819,2]
[348094856,1736308242479,-500.0,0.00010819,2]
[348094857,1736308242488,-500.0,0.00010819,2]
[348094858,1736308242499,-500.0,0.00010819,2]
[348094859,1736308242508,-500.0,0.00010819,2]
[348094860,1736308242518,-1830.63,0.00010819,2]
[348094861,1736308242527,-324.22380014,0.00010819,2]
[348094862,1736308242537,-500.0,0.00010819,2]
[348094863,1736308242547,-500.0,0.00010819,2]
[348094864,1736308242556,-500.0,0.00010819,2]
[348094865,1736308242566,-500.0,0.00010819,2]
[348094866,1736308242575,-500.0,0.00010819,2]
[348094867,1736308242585,-500.0,0.00010819,2]
[348094868,1736308242595,-500.0,0.00010819,2]
[348094869,1736308242604,-472.02581823,0.00010819,2]
[348094870,1736308242840,-27.97418177,0.00010819,2]
[348094871,1736308242850,-500.0,0.00010819,2]
[348094872,1736308242860,-500.0,0.00010819,2]
[348094873,1736308242869,-500.0,0.00010819,2]
[348094874,1736308242878,-500.0,0.00010819,2]
[348094875,1736308242888,-500.0,0.00010819,2]
[348094876,1736308242897,-500.0,0.00010819,2]
[348094877,1736308242906,-500.0,0.00010819,2]
[348094878,1736308242915,-500.0,0.00010819,2]
[348094879,1736308242925,-500.0,0.00010819,2]
[348094880,1736308242935,-500.0,0.00010819,2]
[348094881,1736308242944,-500.0,0.00010819,2]
[348094882,1736308242953,-500.0,0.0001082,2]
[348094883,1736308242963,-491.88918002,0.0001082,2]
[348094884,1736308242999,-23.17081998,0.0001082,2]
[348094885,1736308243011,-921.56,0.0001082,2]
[348094886,1736308243021,-2062.69,0.0001082,2]
[348094888,1736308243030,-500.0,0.0001082,2]
[348094889,1736308243040,-500.0,0.0001082,2]
[348094890,1736308243050,-836.4,0.0001082,2]
[348094891,1736308243059,-682.38,0.0001082,2]
[348094892,1736308243069,-500.0,0.0001082,2]
[348094893,1736308243078,-1211.61,0.0001082,2]
[348094894,1736308243088,-287.18918002,0.0001082,2]
[348094896,1736308243099,-212.81081998,0.0001082,2]
[348094898,1736308243108,-388.84100807,0.0001082,2]
[348094900,1736308243120,-111.15899193,0.0001082,2]
[348094903,1736308243129,-1017.51,0.0001082,2]
[348094904,1736308243139,-534.71,0.0001082,2]
[348094905,1736308243148,-500.0,0.0001082,2]
[348094906,1736308243158,-1211.08,0.0001082,2]
[348094907,1736308243167,-500.0,0.0001082,2]
[348094908,1736308243176,-1064.2,0.0001082,2]
[348094909,1736308243186,-500.0,0.0001082,2]
[348094910,1736308243195,-643.0,0.0001082,2]
[348094911,1736308243205,-500.0,0.0001082,2]
[348094912,1736308243214,-922.31,0.0001082,2]
[348094913,1736308243224,-500.0,0.0001082,2]
[348094914,1736308243234,-510.15,0.0001082,2]
[348094915,1736308243243,-500.0,0.0001082,2]
[348094916,1736308243254,-500.0,0.0001082,2]
[348094917,1736308243264,-897.47,0.0001082,2]
[348094918,1736308243280,-500.0,0.0001082,2]
[348094919,1736308243290,-1014.65,0.0001082,2]
[348094920,1736308243299,-500.0,0.0001082,2]
[348094921,1736308243310,-500.0,0.0001082,2]
[348094922,1736308243321,-808.64,0.0001082,2]
[348094923,1736308243330,-500.0,0.0001082,2]
[348094924,1736308243340,-500.0,0.0001082,2]
[348094925,1736308243351,-507.72618881,0.0001082,2]
[348094926,1736308243361,-511.86,0.0001082,2]
[348094927,1736308243370,-500.0,0.0001082,2]
[348094928,1736308243380,-500.0,0.0001082,2]
[348094929,1736308243390,-378.783815,0.0001082,2]
[348094930,1736308243399,-500.0,0.0001082,2]
[348094931,1736308243412,-500.0,0.0001082,2]
[348094932,1736308243423,-500.0,0.0001082,2]
[348094933,1736308243432,-500.0,0.0001082,2]
[348094934,1736308243442,-500.0,0.0001082,2]
[348094935,1736308243451,-327.613219,0.0001082,2]
[348094936,1736308243463,-500.0,0.0001082,2]
[348094937,1736308243474,-500.0,0.0001082,2]
[348094938,1736308243484,-1667.83,0.0001082,2]
[348094939,1736308243495,-505.5,0.0001082,2]
[348094940,1736308243506,-500.0,0.0001082,2]
[348094941,1736308243516,-909.17,0.0001082,2]
[348094942,1736308243526,-500.0,0.0001082,2]
[348094943,1736308243537,-500.0,0.0001082,2]
[348094944,1736308243546,-500.0,0.0001082,2]
[348094945,1736308243556,-500.0,0.0001082,2]
[348094946,1736308243566,-821.81,0.0001082,2]
[348094947,1736308243576,-519.23,0.0001082,2]
[348094948,1736308243590,-632.35,0.0001082,2]
[348094949,1736308243600,-500.0,0.0001082,2]
[348094950,1736308243610,-500.0,0.0001082,2]
[348094951,1736308243619,-1593.88,0.0001082,2]
[348094952,1736308243629,-500.0,0.0001082,2]
[348094953,1736308243639,-500.0,0.0001082,2]
[348094954,1736308243649,-270.28870048,0.0001082,2]
[348094955,1736308243658,-565.0,0.0001082,2]
[348094956,1736308243669,-500.0,0.0001082,2]
[348094957,1736308243679,-823.69,0.0001082,2]
[348094958,1736308243690,-547.16,0.0001082,2]
[348094959,1736308243700,-1429.17,0.0001082,2]
[348094960,1736308243710,-500.0,0.0001082,2]
[348094961,1736308243725,-1138.04,0.0001082,2]
[348094962,1736308243734,-1004.11,0.0001082,2]
[348094963,1736308243743,-500.0,0.0001082,2]
[348094964,1736308243753,-906.51,0.0001082,2]
[348094965,1736308243763,-611.61,0.0001082,2]
[348094966,1736308243772,-1069.61,0.0001082,2]
[348094967,1736308243783,-500.0,0.0001082,2]
[348094968,1736308243792,-500.0,0.0001082,2]
[348094969,1736308243802,-656.2,0.0001082,2]
[348094970,1736308243811,-964.98,0.0001082,2]
[348094971,1736308243821,-632.7,0.0001082,2]
[348094972,1736308243831,-615.82,0.0001082,2]
[348094973,1736308243841,-292.22,0.0001082,2]
[348094974,1736308243851,-567.38,0.0001082,2]
[348094975,1736308243861,-587.63,0.0001082,2]
[348094976,1736308243872,-500.0,0.0001082,2]
[348094977,1736308243881,-500.0,0.0001082,2]
[348094978,1736308243891,-527.65,0.0001082,2]
[348094979,1736308243901,-500.0,0.0001082,2]
[348094980,1736308243910,-500.0,0.0001082,2]
[348094981,1736308243920,-1021.26,0.0001082,2]
[348094982,1736308243930,-548.65,0.0001082,2]
[348094983,1736308243940,-526.5701576,0.0001082,2]
[348094984,1736308243949,-500.0,0.0001082,2]
[348094985,1736308243959,-500.0,0.0001082,2]
[348094986,1736308243968,-1000.55,0.0001082,2]
[348094987,1736308243977,-500.0,0.0001082,2]
[348094988,1736308243988,-500.0,0.0001082,2]
[348094989,1736308243999,-903.56,0.0001082,2]
[348094990,1736308244008,-500.0,0.0001082,2]
[348094991,1736308244018,-500.0,0.0001082,2]
[348094992,1736308244028,-564.67,0.0001082,2]
[348094993,1736308244039,-2620.77,0.0001082,2]
[348094994,1736308244049,-500.0,0.00010821,2]
[348094995,1736308244060,-1464.59,0.00010821,2]
[348094996,1736308244070,-508.28323037,0.00010821,2]
[348094997,1736308244080,-508.56237966,0.00010821,2]
[348094998,1736308244089,-514.43118739,0.00010821,2]
[348094999,1736308244099,-500.0,0.00010821,2]
[348095000,1736308244108,-500.0,0.00010821,2]
[348095001,1736308244118,-500.0,0.00010821,2]
[348095002,1736308244128,-638.86205001,0.00010821,2]
[348095003,1736308244138,-218.89050307,0.00010821,2]
[348095004,1736308244148,-500.0,0.00010821,2]
[348095005,1736308244158,-500.0,0.00010821,2]
[348095006,1736308244167,-500.0,0.00010821,2]
[348095007,1736308244177,-500.0,0.00010821,2]
[348095008,1736308244187,-500.0,0.00010821,2]
[348095009,1736308244196,-500.0,0.00010821,2]
[348095010,1736308244206,-500.0,0.00010821,2]
[348095011,1736308244216,-500.0,0.00010821,2]
[348095012,1736308244226,-500.0,0.00010821,2]
[348095013,1736308244236,-511.96773685,0.00010821,2]
[348095014,1736308244246,-500.0,0.00010821,2]
[348095015,1736308244255,-500.0,0.00010821,2]
[348095016,1736308244266,-500.0,0.00010821,2]
[348095017,1736308244281,-500.0,0.00010821,2]
[348095018,1736308244291,-500.0,0.00010821,2]
[348095019,1736308244301,-500.0,0.00010821,2]